bitfinex-derivatives/quotes_BTCF0:USTF0_20210105
["timestamp","ask_amount","ask_price","bid_price","bid_amount"]
[1609881739177,0.0887,33851.0,33848.0,0.13632608]
[1609881739577,0.0887,33851.0,33838.0,3.8872]
[1609881739779,0.13925,33852.0,33830.0,0.13952]
[1609881740379,1.13925,33852.0,33835.0,1.0]
[1609881740780,0.0887,33851.0,33835.0,1.0]
[1609881741183,0.0887,33851.0,33843.0,0.13632608]
[1609881741886,1.13925,33852.0,33843.0,0.13632608]
[1609881742286,0.13925,33852.0,33843.0,0.13632608]
[1609881742786,1.0,33853.0,33843.0,0.13632608]
[1609881743186,0.13632608,33846.0,33843.0,0.13632608]
[1609881744389,0.0892,33845.0,33843.0,0.13632608]
[1609881744986,0.13632608,33846.0,33843.0,0.13632608]
[1609881745186,0.13632608,33846.0,33836.0,1.0]
[1609881745587,0.68222608,33846.0,33836.0,1.0]
[1609881746388,1.0,33837.0,33829.0,3.7416]
[1609881746588,1.09278,33837.0,33820.0,0.13619]
[1609881746788,1.09278,33837.0,33819.0,3.13716277]
[1609881746991,1.09278,33837.0,33819.0,1.0]
[1609881747188,0.13632608,33820.0,33819.0,1.0]
[1609881748289,0.13632608,33820.0,33809.0,0.09883]
[1609881748491,1.13632608,33820.0,33807.0,0.1771]
[1609881748691,1.27882608,33820.0,33803.0,1.0]
[1609881749293,1.1425,33820.0,33804.0,0.13632608]
[1609881750293,0.1425,33820.0,33804.0,0.13632608]
[1609881751196,0.13632608,33811.0,33810.0,0.13632608]
[1609881752299,0.22422608,33811.0,33810.0,0.13632608]
[1609881752900,0.13632608,33811.0,33810.0,0.13632608]
[1609881754700,0.13632608,33811.0,33795.0,4.47101]
[1609881755302,0.13632608,33806.0,33802.0,0.13632608]
[1609881756402,1.13632608,33806.0,33802.0,0.13632608]
[1609881757203,1.0,33806.0,33802.0,0.13632608]
[1609881758202,1.0,33806.0,33804.0,3.4022]
[1609881758404,0.13632608,33812.0,33804.0,3.4022]
[1609881759304,0.13632608,33812.0,33811.0,0.13632608]
[1609881759705,1.0,33817.0,33811.0,0.13632608]
[1609881760306,0.5732,33831.0,33811.0,0.13632608]
[1609881760506,1.0,33828.0,33811.0,1.13632608]
[1609881761209,1.0,33828.0,33827.0,0.13632608]
[1609881762412,0.70952608,33831.0,33827.0,0.13632608]
[1609881763912,0.42772608,33831.0,33827.0,0.13632608]
[1609881764315,0.2914,33831.0,33827.0,0.13632608]
[1609881767216,0.13632608,33828.0,33827.0,0.13632608]
[1609881768320,0.13632608,33828.0,33819.0,3.8495]
[1609881768520,0.13632608,33828.0,33817.0,1.0]
[1609881769221,0.13632608,33818.0,33817.0,1.13632608]
[1609881769621,0.13632608,33818.0,33817.0,1.0]
[1609881770422,1.13632608,33818.0,33802.0,3.80987]
[1609881771223,1.0,33818.0,33808.0,0.13632608]
[1609881772325,1.0,33816.0,33808.0,0.13632608]
[1609881773326,0.13632608,33809.0,33808.0,0.13632608]
[1609881774125,0.09184,33814.0,33808.0,0.13632608]
[1609881775327,0.09184,33814.0,33803.0,1.0]
[1609881775328,0.22816608,33814.0,33812.0,0.13632608]
[1609881776529,0.09184,33814.0,33812.0,0.13632608]
[1609881777129,0.10179,33822.0,33812.0,0.13632608]
[1609881777330,0.13632608,33825.0,33821.0,0.13632608]
[1609881779635,0.13632608,33825.0,33821.0,3.44842608]
[1609881781638,0.13632608,33825.0,33821.0,3.44792608]
[1609881781839,0.13632608,33825.0,33821.0,0.13582608]
[1609881783442,0.13632608,33825.0,33814.0,4.0412]
[1609881784246,0.13632608,33825.0,33811.0,1.0]
[1609881784447,0.13632608,33825.0,33805.0,1.0]
[1609881784448,1.0,33822.0,33805.0,1.0]
[1609881784744,1.14045,33822.0,33805.0,1.0]
[1609881785244,1.14045,33822.0,33806.0,0.6688]
[1609881785444,1.14045,33822.0,33817.0,0.13632608]
[1609881786348,0.14045,33822.0,33817.0,0.13632608]
[1609881787448,5.01502608,33818.0,33811.0,1.0]
[1609881787848,0.13632608,33818.0,33811.0,1.0]
[1609881788048,4.4021,33812.0,33811.0,1.0]
[1609881788248,0.13632608,33818.0,33811.0,1.0]
[1609881788448,1.0,33812.0,33803.0,3.8679]
[1609881789451,0.13632608,33810.0,33809.0,0.13632608]
[1609881797663,0.13632608,33810.0,33800.0,3.5591]
[1609881798364,1.0,33808.0,33800.0,3.5591]
[1609881799566,1.0,33808.0,33803.0,0.13632608]
[1609881801669,0.13632608,33807.0,33803.0,0.13632608]
[1609881801969,0.26663608,33807.0,33803.0,0.13632608]
[1609881808975,0.26663608,33807.0,33803.0,4.37972608]
[1609881809577,0.26663608,33807.0,33803.0,0.13632608]
[1609881811379,4.5672,33806.0,33803.0,0.13632608]
[1609881813580,0.26663608,33807.0,33803.0,0.13632608]
[1609881814580,0.13031,33807.0,33803.0,0.13632608]
[1609881814780,1.0,33809.0,33803.0,0.13632608]
[1609881815180,1.0,33809.0,33808.0,4.7299]
[1609881815381,0.7209,33809.0,33808.0,4.7299]
[1609881815581,0.14423955,33822.0,33808.0,4.7299]
[1609881815781,0.14423955,33822.0,33821.0,0.13632608]
[1609881815980,0.00378955,33822.0,33821.0,0.79422608]
[1609881816383,0.00378955,33822.0,33821.0,0.13632608]
[1609881817584,0.00378955,33822.0,33821.0,6.13632608]
[1609881817786,0.00378634,33825.0,33821.0,6.13632608]
[1609881818989,0.00378634,33825.0,33824.0,3.5519]
[1609881819389,0.28843868,33831.0,33824.0,7.997307]
[1609881819790,0.28843868,33831.0,33830.0,0.13632608]
[1609881819993,0.28843868,33831.0,33830.0,3.54682608]
[1609881821495,0.28843868,33831.0,33830.0,0.13632608]
[1609881821693,0.28843868,33831.0,33830.0,1.13632608]
[1609881823997,0.28843868,33831.0,33830.0,5.70282608]
[1609881824596,0.28843868,33831.0,33830.0,1.13632608]
[1609881825196,0.28843868,33831.0,33830.0,1.65642608]
[1609881825600,0.08593868,33831.0,33830.0,0.65642608]
[1609881826199,0.11718,33854.0,33830.0,2.15642608]
[1609881826399,0.11718,33854.0,33830.0,1.63632608]
[1609881826601,0.11718,33854.0,33852.0,4.9297]
[1609881826800,0.00376688,33866.0,33852.0,0.10631]
[1609881827203,0.00376688,33866.0,33860.0,3.9476]
[1609881827402,0.00376688,33866.0,33852.0,0.10631]
[1609881828004,0.00376688,33866.0,33863.0,0.13632608]
[1609881829005,0.00376688,33866.0,33864.0,4.4937]
[1609881833210,0.00376688,33866.0,33863.0,0.13632608]
[1609881833411,0.00376524,33877.0,33863.0,0.13632608]
[1609881834012,0.00376524,33877.0,33872.0,0.13632608]
[1609881834212,0.1035,33880.0,33872.0,0.13632608]
[1609881837412,3.4117,33873.0,33872.0,0.13632608]
[1609881838012,3.54802608,33873.0,33872.0,0.13632608]
[1609881838212,3.4117,33873.0,33872.0,0.13632608]
[1609881838614,3.4117,33873.0,33872.0,1.13632608]
[1609881839013,0.1035,33880.0,33872.0,1.13632608]
[1609881839414,1.00373572,33890.0,33872.0,1.13632608]
[1609881839917,1.0,33890.0,33872.0,1.13632608]
[1609881840114,1.0,33890.0,33879.0,0.13632608]
[1609881840115,0.13632608,33882.0,33879.0,0.13632608]
[1609881841017,0.13632608,33882.0,33875.0,1.0]
[1609881841018,0.61732608,33882.0,33875.0,1.0]
[1609881841917,0.13632608,33882.0,33875.0,1.0]
[1609881842117,3.97612608,33876.0,33875.0,1.0]
[1609881842618,3.97612608,33876.0,33873.0,1.0]
[1609881844620,3.97612608,33876.0,33866.0,0.13632608]
[1609881845421,0.13632608,33876.0,33866.0,0.13632608]
[1609881846121,0.13632608,33867.0,33866.0,0.13632608]
[1609881846522,0.13632608,33867.0,33866.0,1.13632608]
[1609881847524,0.11515,33869.0,33866.0,1.13632608]
[1609881848524,0.11515,33869.0,33868.0,1.0]
[1609881849124,0.11515,33869.0,33868.0,1.6605]
[1609881851427,0.13632608,33872.0,33868.0,1.6605]
[1609881852328,0.13632608,33872.0,33871.0,0.13632608]
[1609881852529,0.13632608,33872.0,33871.0,1.13632608]
[1609881854733,0.13632608,33872.0,33871.0,5.34642608]
[1609881855536,0.13632608,33872.0,33871.0,1.13632608]
[1609881855933,0.13632608,33872.0,33871.0,1.0]
[1609881856544,4.46882608,33872.0,33856.0,1.0]
[1609881858438,0.24199608,33857.0,33856.0,1.13632608]
[1609881858639,0.24199608,33857.0,33856.0,0.13632608]
[1609881859141,0.24199608,33857.0,33854.0,1.0]
[1609881860845,0.10567,33857.0,33854.0,1.0]
[1609881861047,0.10567,33857.0,33856.0,4.1865]
[1609881861547,1.0,33871.0,33856.0,4.1865]
[1609881862349,1.0,33871.0,33870.0,0.13632608]
[1609881862549,0.11962,33877.0,33870.0,1.13632608]
[1609881863151,0.277,33879.0,33870.0,1.13632608]
[1609881864353,0.277,33879.0,33876.0,0.13632608]
[1609881864553,0.277,33879.0,33876.0,1.13632608]
[1609881866658,0.277,33879.0,33878.0,1.0]
[1609881867860,0.10784,33884.0,33878.0,1.0]
[1609881868060,0.10784,33884.0,33878.0,5.8188]
[1609881868261,0.0037289,33899.0,33878.0,5.8188]
[1609881868458,0.43170409,33896.0,33895.0,0.13632608]
[1609881868661,0.43170409,33896.0,33895.0,4.25902608]
[1609881870663,0.43170409,33896.0,33895.0,1.13632608]
[1609881871064,0.43170409,33896.0,33895.0,1.0]
[1609881871464,5.23360409,33896.0,33895.0,1.0]
[1609881872566,5.23360409,33896.0,33884.0,1.0]
[1609881872767,5.36171409,33896.0,33884.0,1.0]
[1609881874569,0.13632608,33885.0,33883.0,0.13632608]
[1609881878182,0.1495,33886.0,33884.0,4.1639]
[1609881879879,0.13632608,33889.0,33883.0,0.13632608]
[1609881880480,0.13632608,33889.0,33887.0,0.13632608]
[1609881882582,0.13632608,33889.0,33888.0,1.0]
[1609881884585,0.13632608,33889.0,33888.0,5.1108]
[1609881885487,0.13632608,33889.0,33888.0,1.0]
[1609881886688,0.13632608,33889.0,33881.0,0.13632608]
[1609881886889,0.28658608,33889.0,33881.0,0.13632608]
[1609881888492,0.15026,33889.0,33885.0,0.13632608]
[1609881890493,0.28658608,33889.0,33885.0,0.13632608]
[1609881890694,0.28658608,33889.0,33888.0,1.0]
[1609881892595,0.28658608,33889.0,33880.0,3.3677]
[1609881892596,0.28658608,33889.0,33883.0,1.0]
[1609881894599,0.15026,33889.0,33887.0,1.0]
[1609881894800,0.12811,33896.0,33887.0,1.0]
[1609881894998,0.00376974,33903.0,33887.0,1.0]
[1609881896503,0.13632608,33888.0,33881.0,0.13632608]
[1609881896802,0.26713608,33888.0,33881.0,0.13632608]
[1609881898503,0.13632608,33882.0,33881.0,1.13632608]
[1609881903106,0.13081,33888.0,33881.0,1.13632608]
[1609881903307,4.1281,33895.0,33881.0,1.13632608]
[1609881904610,4.1281,33895.0,33894.0,1.0]
[1609881905012,0.298,33895.0,33894.0,1.0]
[1609881905613,4.8125,33906.0,33894.0,1.0]
[1609881906013,0.2948704,33908.0,33894.0,1.0]
[1609881906517,0.2948704,33908.0,33904.0,1.0]
[1609881908314,0.2911,33908.0,33904.0,1.0]
[1609881908513,0.13632608,33905.0,33892.0,0.13632608]
[1609881908815,0.25531608,33905.0,33892.0,0.13632608]
[1609881909515,0.45907337,33895.0,33892.0,0.13632608]
[1609881909715,0.55397337,33895.0,33892.0,0.13632608]
[1609881910517,0.55397337,33895.0,33894.0,1.0]
[1609881912519,0.55397337,33895.0,33892.0,0.13632608]
[1609881914519,0.55397337,33895.0,33894.0,1.0]
[1609881915920,0.55397337,33895.0,33894.0,1.5414]
[1609881916521,0.55397337,33895.0,33894.0,0.5414]
[1609881916921,0.45907337,33895.0,33894.0,0.5414]
[1609881917723,0.18758783,33895.0,33894.0,0.5414]
[1609881920527,0.18758783,33895.0,33894.0,6.5414]
[1609881923134,0.12473,33916.0,33894.0,8.66338322]
[1609881924536,0.12473,33916.0,33915.0,1.0]
[1609881924737,0.12473,33916.0,33915.0,1.13632608]
[1609881925537,4.99823,33916.0,33915.0,1.0]
[1609881926642,4.99823,33916.0,33900.0,1.0]
[1609881928746,0.13632608,33901.0,33900.0,1.0]
[1609881928946,0.24564608,33901.0,33900.0,1.0]
[1609881930146,4.14114608,33901.0,33900.0,1.0]
[1609881930547,4.14114608,33901.0,33890.0,1.0]
[1609881930746,0.13632608,33891.0,33890.0,1.0]
[1609881930948,0.25443608,33891.0,33890.0,1.0]
[1609881934550,0.25443608,33891.0,33885.0,0.13632608]
[1609881934753,0.25443608,33891.0,33890.0,1.13632608]
[1609881936755,0.25443608,33891.0,33890.0,1.0]
[1609881939359,4.82113608,33891.0,33890.0,1.0]
[1609881940260,4.82113608,33891.0,33890.0,0.2567]
[1609881940663,5.82113608,33891.0,33872.0,2.12771694]
[1609881940862,0.13632608,33873.0,33872.0,2.12771694]
[1609881941064,4.50792608,33873.0,33872.0,2.12771694]
[1609881941263,4.50792608,33873.0,33871.0,1.0]
[1609881942562,4.50792608,33873.0,33861.0,1.0]
[1609881942761,1.0,33878.0,33865.0,0.13632608]
[1609881944164,1.0,33878.0,33861.0,1.0]
[1609881944567,0.09608,33879.0,33860.0,2.12565495]
[1609881944766,0.13632608,33861.0,33860.0,2.26198103]
[1609881945566,0.13632608,33861.0,33860.0,2.12565495]
[1609881946570,0.13632608,33861.0,33860.0,3.12565495]
[1609881948083,0.13632608,33861.0,33860.0,1.0]
[1609881948673,0.13632608,33861.0,33848.0,2.11853373]
[1609881948872,3.69052608,33849.0,33848.0,2.11853373]
[1609881949073,3.82177608,33849.0,33848.0,2.11853373]
[1609881949276,3.82177608,33849.0,30814.0,0.01]
[1609881949277,3.82177608,33849.0,33843.0,2.12187007]
[1609881949475,0.26757608,33849.0,33843.0,2.12187007]
[1609881949675,0.2784,33848.0,33843.0,2.12187007]
[1609881949875,0.2784,33848.0,33832.0,2.12927211]
[1609881950674,0.2784,33848.0,33823.0,2.13673403]
[1609881950874,0.2784,33848.0,33824.0,4.7774]
[1609881951275,0.6608,33847.0,33824.0,4.7774]
[1609881951473,0.2784,33848.0,33819.0,0.13632608]
[1609881951674,3.6471,33845.0,33819.0,0.13632608]
[1609881952276,0.2784,33848.0,33819.0,0.13632608]
[1609881952676,3.5917,33832.0,33819.0,0.13632608]
[1609881952875,0.13632608,33820.0,33819.0,0.13632608]
[1609881953274,4.39812608,33820.0,33819.0,0.13632608]
[1609881954379,4.39812608,33820.0,33808.0,2.12586461]
[1609881954881,4.2618,33820.0,33809.0,0.13632608]
[1609881955684,0.13049,33825.0,33809.0,0.13632608]
[1609881956483,4.3319,33819.0,33809.0,0.13632608]
[1609881956884,4.3319,33819.0,33818.0,0.13632608]
[1609881957083,0.13049,33825.0,33818.0,0.13632608]
[1609881958283,0.13632608,33827.0,33818.0,0.13632608]
[1609881958685,1.0,33826.0,33818.0,0.13632608]
[1609881958884,0.13632608,33819.0,33814.0,0.13632608]
[1609881960986,0.1469,33821.0,33814.0,0.13632608]
[1609881960987,0.13632608,33815.0,33814.0,0.13632608]
[1609881961888,0.1469,33821.0,33814.0,0.13632608]
[1609881962889,0.28322608,33821.0,33820.0,0.13632608]
[1609881966692,0.28322608,33821.0,33820.0,1.13632608]
[1609881968696,0.28322608,33821.0,33820.0,0.13632608]
[1609881968896,0.28322608,33821.0,33816.0,0.13632608]
[1609881970899,0.13632608,33817.0,33816.0,0.13632608]
[1609881971898,0.31439502,33821.0,33816.0,0.13632608]
[1609881972800,0.31439502,33821.0,33820.0,1.0]
[1609881973001,0.4507211,33821.0,33820.0,1.13632608]
[1609881974702,0.4507211,33821.0,33820.0,0.13632608]
[1609881975704,0.4507211,33821.0,33815.0,4.8107]
[1609881976704,0.4507211,33821.0,33820.0,1.0]
[1609881977005,0.4507211,33821.0,33820.0,1.13632608]
[1609881977705,0.4507211,33821.0,33820.0,1.0]
[1609881978704,1.0,33820.0,33804.0,1.0]
[1609881979005,1.0,33820.0,33811.0,0.13632608]
[1609881980707,0.31439502,33821.0,33811.0,0.13632608]
[1609881981007,0.31439502,33821.0,33816.0,0.13632608]
[1609881983009,0.13632608,33817.0,33816.0,0.13632608]
[1609881985013,0.13632608,33817.0,33811.0,0.13632608]
[1609881986510,0.13632608,33817.0,33813.0,3.6118]
[1609881986713,0.13632608,33817.0,33813.0,4.6118]
[1609881988413,0.31439502,33821.0,33813.0,4.6118]
[1609881988615,0.31439502,33821.0,33816.0,1.0]
[1609881989013,0.31439502,33821.0,33820.0,0.13632608]
[1609881989213,0.31439502,33821.0,33820.0,0.73472608]
[1609881990617,0.31439502,33821.0,33820.0,1.73472608]
[1609881992617,0.31439502,33821.0,33820.0,0.73472608]
[1609881993217,0.16749502,33821.0,33820.0,0.73472608]
[1609881993418,0.2748,33856.0,33820.0,0.73472608]
[1609881993818,0.2748,33856.0,33820.0,0.13632608]
[1609881994017,0.2748,33856.0,33827.0,0.10228]
[1609881994220,0.37726,33856.0,33839.0,4.6752]
[1609881994520,0.10246,33856.0,33839.0,4.6752]
[1609881995120,0.10246,33856.0,33855.0,0.13632608]
[1609881995320,0.29570127,33858.0,33855.0,4.97652608]
[1609881995720,0.44347064,33865.0,33855.0,4.97652608]
[1609881995921,0.13632608,33868.0,33855.0,4.97652608]
[1609881996621,0.13632608,33868.0,33866.0,1.0]
[1609881997023,0.13632608,33868.0,33867.0,0.13632608]
[1609881998621,0.13632608,33868.0,33867.0,1.13632608]
[1609882000624,0.13632608,33868.0,33867.0,0.13632608]
[1609882003932,0.23599608,33868.0,33867.0,0.13632608]
[1609882004832,0.23599608,33868.0,33855.0,4.8402]
[1609882005033,0.09967,33868.0,33863.0,0.13632608]
[1609882005734,0.09967,33868.0,33855.0,4.8402]
[1609882007036,0.09967,33868.0,33860.0,0.13632608]
[1609882008937,1.0,33871.0,33860.0,0.13632608]
[1609882009139,1.0,33871.0,33868.0,0.13632608]
[1609882010243,1.0,33871.0,33855.0,4.8402]
[1609882010643,1.0,33878.0,33861.0,1.0]
[1609882011045,1.0,33878.0,33864.0,0.13632608]
[1609882012648,0.4753,33877.0,33864.0,0.13632608]
[1609882012848,0.61817,33877.0,33864.0,0.13632608]
[1609882013049,0.13632608,33865.0,33864.0,0.13632608]
[1609882013247,0.24935608,33865.0,33864.0,0.13632608]
[1609882015052,0.24935608,33865.0,33860.0,0.13632608]
[1609882017160,0.24935608,33865.0,33863.0,0.4848]
[1609882019161,0.24935608,33865.0,33864.0,0.13632608]
[1609882019361,0.11303,33865.0,33864.0,0.13632608]
[1609882019561,0.14287,33877.0,33864.0,0.13632608]
[1609882019761,0.14287,33877.0,33869.0,4.8674]
[1609882019961,1.0,33878.0,33869.0,4.8674]
[1609882020762,0.2823,33882.0,33877.0,1.0]
[1609882020965,0.2823,33882.0,33878.0,0.5038]
[1609882021167,0.13632608,33887.0,33881.0,0.13632608]
[1609882021364,0.10695,33887.0,33882.0,4.2463]
[1609882022365,1.0,33895.0,33881.0,0.13632608]
[1609882022765,3.4319,33893.0,33886.0,1.0]
[1609882023165,0.10424,33895.0,33892.0,0.13632608]
[1609882024667,0.10424,33895.0,33894.0,1.0]
[1609882026771,0.10424,33895.0,33892.0,0.13632608]
[1609882028072,0.13632608,33902.0,33892.0,0.13632608]
[1609882028270,0.2754,33911.0,33898.0,3.994]
[1609882029273,0.2754,33911.0,33909.0,0.13632608]
[1609882031178,0.13632608,33910.0,33909.0,0.13632608]
[1609882031580,0.23840608,33910.0,33909.0,0.13632608]
[1609882031979,0.10208,33910.0,33909.0,0.13632608]
[1609882032179,0.10208,33910.0,33909.0,4.25022608]
[1609882034783,0.10208,33910.0,33909.0,5.25022608]
[1609882034983,0.10208,33910.0,33909.0,1.13632608]
[1609882035583,0.10208,33910.0,33909.0,1.0]
[1609882036586,0.13632608,33917.0,33909.0,1.0]
[1609882036787,0.10712,33910.0,33897.0,3.3451]
[1609882037087,0.10712,33910.0,33867.0,2.09047709]
[1609882037289,0.10712,33910.0,33909.0,0.13632608]
[1609882037689,0.10712,33910.0,33909.0,4.90652608]
[1609882040690,0.10712,33910.0,33909.0,1.13632608]
[1609882041795,0.2991,33929.0,33909.0,1.13632608]
[1609882042395,0.00371626,33935.0,33920.0,4.0429]
[1609882042597,1.0,33936.0,33909.0,1.13632608]
[1609882042793,0.0037158,33941.0,33928.0,1.0]
[1609882043194,0.13632608,33929.0,33928.0,1.13632608]
[1609882043393,0.26666608,33929.0,33928.0,1.13632608]
[1609882043593,0.26666608,33929.0,33928.0,1.0]
[1609882044696,0.26666608,33929.0,33917.0,4.5055]
[1609882045294,0.13034,33929.0,33924.0,0.13632608]
[1609882046194,0.13034,33929.0,33926.0,4.924]
[1609882046694,0.13034,33929.0,33928.0,1.0]
[1609882047295,0.13034,33929.0,33928.0,1.13632608]
[1609882048398,0.13632608,33933.0,33928.0,1.13632608]
[1609882048595,0.13632608,33933.0,33928.0,0.13632608]
[1609882048796,0.13632608,33933.0,33928.0,1.13632608]
[1609882049298,0.13632608,33933.0,33932.0,0.13632608]
[1609882050200,0.13632608,33933.0,33928.0,1.0]
[1609882050603,0.22814608,33933.0,33928.0,1.0]
[1609882050801,0.22814608,33933.0,33930.0,1.0]
[1609882051205,0.22814608,33933.0,33932.0,0.13632608]
[1609882052605,0.22814608,33933.0,33930.0,3.9897]
[1609882052805,0.22814608,33933.0,33932.0,1.0]
[1609882056909,0.22814608,33933.0,33920.0,4.4754]
[1609882057213,0.13632608,33921.0,33920.0,4.4754]
[1609882058912,0.13632608,33921.0,33920.0,5.4754]
[1609882062518,0.13632608,33921.0,33920.0,1.0]
[1609882071031,0.13632608,33921.0,33909.0,0.09319]
[1609882071232,0.13632608,33921.0,33916.0,0.13632608]
[1609882071434,0.13632608,33921.0,33914.0,4.8293]
[1609882071632,0.13632608,33921.0,33909.0,0.09319]
[1609882072031,0.13632608,33921.0,33906.0,1.0]
[1609882073033,1.0,33919.0,33903.0,1.0]
[1609882073234,1.0,33919.0,33905.0,3.8828]
[1609882075234,0.13632608,33906.0,33905.0,3.8828]
[1609882075635,0.13632608,33906.0,33903.0,1.0]
[1609882075835,0.24964608,33906.0,33903.0,1.0]
[1609882076237,0.11332,33906.0,33903.0,1.0]
[1609882076437,0.11332,33906.0,33905.0,3.5446]
[1609882076935,0.11277,33922.0,33905.0,9.5446]
[1609882077336,0.13632608,33916.0,33909.0,0.13632608]
[1609882077538,0.23777608,33916.0,33905.0,6.0]
[1609882078936,0.23777608,33916.0,33894.0,3.4682]
[1609882079338,0.10145,33916.0,33905.0,0.13632608]
[1609882080941,0.10145,33916.0,33905.0,1.13632608]
[1609882081440,0.13632608,33906.0,33905.0,1.13632608]
[1609882081742,0.25089608,33906.0,33905.0,1.13632608]
[1609882089050,0.25089608,33906.0,33905.0,5.75472608]
[1609882089952,0.11457,33906.0,33905.0,5.75472608]
[1609882090357,0.10145,33916.0,33905.0,5.75472608]
[1609882090752,0.4168752,33922.0,33905.0,5.75472608]
[1609882091153,0.4168752,33922.0,33915.0,1.0]
[1609882091352,0.4168752,33922.0,33921.0,0.13632608]
[1609882092356,4.9432752,33922.0,33921.0,0.13632608]
[1609882092555,4.9432752,33922.0,33915.0,1.0]
[1609882092756,5.0750952,33922.0,33915.0,1.0]
[1609882092954,5.0750952,33922.0,33912.0,1.0]
[1609882093356,0.13632608,33913.0,33912.0,1.0]
[1609882093555,0.23604608,33913.0,33912.0,1.0]
[1609882097364,0.09972,33913.0,33912.0,1.0]
[1609882098664,0.5486952,33922.0,33912.0,1.0]
[1609882099869,0.13632608,33913.0,33912.0,1.0]
[1609882100166,0.26044608,33913.0,33912.0,1.0]
[1609882105071,4.99824608,33913.0,33912.0,1.0]
[1609882107478,0.26044608,33913.0,33912.0,1.0]
[1609882113883,0.26044608,33913.0,33912.0,1.13632608]
[1609882114585,0.12412,33913.0,33912.0,1.13632608]
[1609882114884,0.55247632,33922.0,33912.0,1.13632608]
[1609882115083,0.55247632,33922.0,33912.0,6.13632608]
[1609882115985,0.55247632,33922.0,33921.0,0.13632608]
[1609882116985,0.55247632,33922.0,33921.0,1.13632608]
[1609882117587,0.42065632,33922.0,33921.0,1.13632608]
[1609882117789,0.4168752,33922.0,33921.0,1.13632608]
[1609882120093,0.4168752,33922.0,33921.0,5.83822608]
[1609882120997,0.4168752,33922.0,33921.0,10.83822608]
[1609882121699,0.4168752,33922.0,33921.0,6.13632608]
[1609882123901,0.55320128,33922.0,33921.0,10.32672608]
[1609882124901,0.4168752,33922.0,33921.0,10.32672608]
[1609882126301,0.4168752,33922.0,33921.0,6.13632608]
[1609882129904,0.55320128,33922.0,33921.0,6.13632608]
[1609882131406,0.4168752,33922.0,33921.0,6.13632608]
[1609882133109,0.4168752,33922.0,33921.0,0.13632608]
[1609882135109,0.4168752,33922.0,33921.0,1.13632608]
[1609882136010,0.55320128,33922.0,33921.0,1.13632608]
[1609882137112,0.55320128,33922.0,33921.0,6.13632608]
[1609882139014,0.55320128,33922.0,33921.0,0.13632608]
[1609882141121,0.55320128,33922.0,33921.0,1.13632608]
[1609882143519,0.4168752,33922.0,33921.0,1.13632608]
[1609882146925,0.4168752,33922.0,33921.0,6.13632608]
[1609882151035,0.4168752,33922.0,33921.0,0.13632608]
[1609882152936,0.4168752,33922.0,33921.0,6.13632608]
[1609882154937,0.4168752,33922.0,33921.0,0.13632608]
[1609882155138,0.4168752,33922.0,33921.0,6.13632608]
[1609882157040,0.4168752,33922.0,33921.0,0.13632608]
[1609882158938,0.4168752,33922.0,33921.0,6.13632608]
[1609882160140,0.55320128,33922.0,33921.0,6.13632608]
[1609882160941,0.55320128,33922.0,33921.0,0.13632608]
[1609882161142,0.55320128,33922.0,33921.0,6.13632608]
[1609882165748,0.55320128,33922.0,33921.0,6.0]
[1609882166147,0.55320128,33922.0,33921.0,6.13632608]
[1609882169950,0.55320128,33922.0,33921.0,6.0]
[1609882173452,0.4168752,33922.0,33921.0,6.0]
[1609882175152,0.4168752,33922.0,33921.0,8.13474954]
[1609882176552,0.4168752,33922.0,33921.0,6.0]
[1609882178253,0.4168752,33922.0,33921.0,4.6299]
[1609882178657,4.1422752,33922.0,33919.0,2.13070452]
[1609882178856,0.4168752,33922.0,33919.0,2.13070452]
[1609882179256,0.4168752,33922.0,33918.0,2.13527343]
[1609882180056,0.4168752,33922.0,33896.0,2.14082501]
[1609882180255,0.13632608,33897.0,33896.0,2.14082501]
[1609882180856,0.13632608,33897.0,33892.0,2.14257185]
[1609882182060,0.13632608,33897.0,33893.0,2.14197547]
[1609882183859,0.13632608,33897.0,33887.0,1.0]
[1609882184160,0.13632608,33888.0,33887.0,1.0]
[1609882184360,0.26708608,33888.0,33887.0,1.0]
[1609882185361,0.10894,33898.0,33887.0,1.0]
[1609882185561,0.5873,33897.0,33887.0,1.0]
[1609882185761,3.6318,33899.0,33887.0,1.0]
[1609882186160,0.13632608,33888.0,33887.0,1.0]
[1609882186360,0.24586608,33888.0,33887.0,1.0]
[1609882186560,0.24586608,33888.0,33884.0,2.12416564]
[1609882187661,0.86276608,33888.0,33884.0,2.12416564]
[1609882187860,0.24586608,33888.0,33884.0,2.12416564]
[1609882188263,3.4107,33886.0,33884.0,2.12416564]
[1609882188463,0.24586608,33888.0,33884.0,2.12416564]
[1609882188863,1.0,33885.0,33884.0,2.12416564]
[1609882189668,1.0,33885.0,33881.0,2.12558455]
[1609882190267,0.13632608,33882.0,33864.0,0.13632608]
[1609882190467,0.73952608,33882.0,33864.0,0.13632608]
[1609882191367,0.13632608,33882.0,33864.0,0.13632608]
[1609882192273,0.13632608,33865.0,33864.0,0.13632608]
[1609882192469,0.23346608,33865.0,33864.0,0.13632608]
[1609882193069,3.4179,33861.0,33852.0,2.11772908]
[1609882193470,3.4179,33861.0,33851.0,2.11847189]
[1609882193672,0.23346608,33865.0,33851.0,2.11847189]
[1609882194070,0.23346608,33865.0,33848.0,2.12094704]
[1609882194271,0.13632608,33859.0,33856.0,0.13632608]
[1609882196575,0.13632608,33859.0,33856.0,1.13632608]
[1609882196773,1.52076608,33867.0,33856.0,1.13632608]
[1609882198376,1.0,33873.0,33860.0,0.13632608]
[1609882198576,4.507,33865.0,33860.0,0.13632608]
[1609882198975,4.60503,33865.0,33860.0,0.13632608]
[1609882199276,0.09803,33865.0,33860.0,0.13632608]
[1609882199676,0.09803,33865.0,33860.0,3.70512608]
[1609882200276,0.13632608,33861.0,33860.0,3.70512608]
[1609882200477,0.13632608,33861.0,33860.0,0.13632608]
[1609882201077,0.09803,33865.0,33860.0,0.13632608]
[1609882201277,1.0,33872.0,33864.0,4.7184]
[1609882202377,1.0,33872.0,33871.0,0.13632608]
[1609882202579,0.13632608,33879.0,33871.0,1.72232608]
[1609882204279,0.13632608,33879.0,33878.0,0.13632608]
[1609882204480,0.10954,33888.0,33878.0,0.13632608]
[1609882204681,1.2715,33898.0,33878.0,1.13632608]